[Event "*** Titled Tuesday 3|2 Blitz (Early)"]
[Site "Chess.com"]
[Date "2016.11.01"]
[Round "1"]
[White "RitvarsReimanis"]
[Black "dretch"]
[Result "1/2-1/2"]
[WhiteElo "2418"]
[BlackElo "2656"]
[TimeControl "180+2"]
[EndTime "11:12:47 PDT"]
[Termination "Game drawn - insufficient material"]

1. d4 {[%clk 0:02:56.1]} 1... d5 {[%clk 0:02:54.8]} 2. c4 {[%clk 0:02:56]} 2...
c6 {[%clk 0:02:56.1]} 3. Nf3 {[%clk 0:02:56.6]} 3... Nf6 {[%clk 0:02:57.3]} 4.
e3 {[%clk 0:02:57.5]} 4... Bf5 {[%clk 0:02:57]} 5. Nc3 {[%clk 0:02:58.4]} 5...
e6 {[%clk 0:02:58.4]} 6. Nh4 {[%clk 0:02:59.3]} 6... Bg6 {[%clk 0:02:58.6]} 7.
Nxg6 {[%clk 0:02:56.5]} 7... hxg6 {[%clk 0:02:58.4]} 8. Bd2 {[%clk 0:02:57.8]}
8... Nbd7 {[%clk 0:02:58.6]} 9. Qb3 {[%clk 0:02:53.6]} 9... Qc7 {[%clk
0:02:46.3]} 10. cxd5 {[%clk 0:02:31.3]} 10... exd5 {[%clk 0:02:46]} 11. Rc1
{[%clk 0:02:26.6]} 11... Rc8 {[%clk 0:02:46.3]} 12. g3 {[%clk 0:02:23.1]} 12...
Be7 {[%clk 0:02:43.8]} 13. Bg2 {[%clk 0:02:24.1]} 13... Nb6 {[%clk 0:02:43.2]}
14. e4 {[%clk 0:02:12]} 14... dxe4 {[%clk 0:02:39.6]} 15. Nxe4 {[%clk
0:02:13.9]} 15... O-O {[%clk 0:02:37.6]} 16. O-O {[%clk 0:02:12.1]} 16... Rcd8
{[%clk 0:02:36.4]} 17. Be3 {[%clk 0:02:06.7]} 17... Nfd5 {[%clk 0:02:32]} 18.
Bd2 {[%clk 0:01:58.6]} 18... Nf6 {[%clk 0:02:06.3]} 19. Bf4 {[%clk 0:01:53.2]}
19... Qc8 {[%clk 0:02:04.4]} 20. Be3 {[%clk 0:01:52.2]} 20... Nfd5 {[%clk
0:01:57]} 21. Bd2 {[%clk 0:01:52.1]} 21... Nc7 {[%clk 0:01:52.6]} 22. Be3 {[%clk
0:01:51.3]} 22... Ne6 {[%clk 0:01:51.9]} 23. Rfd1 {[%clk 0:01:47.1]} 23... Nd5
{[%clk 0:01:46.9]} 24. Bh3 {[%clk 0:01:25.9]} 24... Nxd4 {[%clk 0:01:30.7]} 25.
Bxd4 {[%clk 0:01:17]} 25... Qxh3 {[%clk 0:01:30.2]} 26. Qxb7 {[%clk 0:01:17.3]}
26... Qg4 {[%clk 0:01:12.2]} 27. Bc5 {[%clk 0:00:45.8]} 27... Qxe4 {[%clk
0:00:53.1]} 28. Re1 {[%clk 0:00:45.8]} 28... Qf5 {[%clk 0:00:46]} 29. Bxe7
{[%clk 0:00:38.3]} 29... Rd7 {[%clk 0:00:47]} 30. Qxd7 {[%clk 0:00:32.7]} 30...
Qxd7 {[%clk 0:00:47.1]} 31. Bxf8 {[%clk 0:00:34.6]} 31... Kxf8 {[%clk 0:00:49]}
32. Re4 {[%clk 0:00:31.9]} 32... g5 {[%clk 0:00:49.2]} 33. Rce1 {[%clk
0:00:32.7]} 33... g6 {[%clk 0:00:50]} 34. h4 {[%clk 0:00:33.7]} 34... gxh4
{[%clk 0:00:50.4]} 35. Rxh4 {[%clk 0:00:35.6]} 35... Kg7 {[%clk 0:00:51.6]} 36.
Ra4 {[%clk 0:00:34.5]} 36... c5 {[%clk 0:00:50]} 37. Ra5 {[%clk 0:00:32.2]}
37... Qc7 {[%clk 0:00:50.2]} 38. Ra3 {[%clk 0:00:32.2]} 38... Nb4 {[%clk
0:00:49.9]} 39. Rc1 {[%clk 0:00:30.1]} 39... Qd7 {[%clk 0:00:46.3]} 40. Rxc5
{[%clk 0:00:28.6]} 40... Qd1+ {[%clk 0:00:47.1]} 41. Kg2 {[%clk 0:00:29.7]}
41... Nd3 {[%clk 0:00:47.6]} 42. Rxd3 {[%clk 0:00:23.8]} 42... Qxd3 {[%clk
0:00:47.6]} 43. Ra5 {[%clk 0:00:16.8]} 43... Qe4+ {[%clk 0:00:47.7]} 44. Kf1
{[%clk 0:00:17.2]} 44... Qd4 {[%clk 0:00:43.7]} 45. b3 {[%clk 0:00:15.4]} 45...
Kf6 {[%clk 0:00:42.5]} 46. Ra4 {[%clk 0:00:16]} 46... Qd1+ {[%clk 0:00:40.6]}
47. Kg2 {[%clk 0:00:17.9]} 47... Qd5+ {[%clk 0:00:41.7]} 48. Kg1 {[%clk
0:00:19.8]} 48... Qc5 {[%clk 0:00:41]} 49. Kg2 {[%clk 0:00:21.7]} 49... Ke5
{[%clk 0:00:39.1]} 50. Rc4 {[%clk 0:00:21.5]} 50... Qd5+ {[%clk 0:00:38.9]} 51.
Kf1 {[%clk 0:00:21.6]} 51... g5 {[%clk 0:00:38.9]} 52. Ra4 {[%clk 0:00:21.7]}
52... Qc5 {[%clk 0:00:32]} 53. Ke2 {[%clk 0:00:21.6]} 53... f5 {[%clk
0:00:26.2]} 54. f4+ {[%clk 0:00:21.9]} 54... gxf4 {[%clk 0:00:26.7]} 55. gxf4+
{[%clk 0:00:23.8]} 55... Kf6 {[%clk 0:00:26]} 56. Kd3 {[%clk 0:00:25.7]} 56...
Kg6 {[%clk 0:00:25.8]} 57. Rc4 {[%clk 0:00:20.8]} 57... Qd5+ {[%clk 0:00:25.5]}
58. Kc3 {[%clk 0:00:20.9]} 58... Kh5 {[%clk 0:00:26.7]} 59. Kb4 {[%clk
0:00:21.5]} 59... Kg4 {[%clk 0:00:26.9]} 60. Ka3 {[%clk 0:00:20.6]} 60... Qa5+
{[%clk 0:00:25]} 61. Kb2 {[%clk 0:00:21.3]} 61... Kf3 {[%clk 0:00:25.3]} 62. a4
{[%clk 0:00:22.4]} 62... Qd2+ {[%clk 0:00:23.2]} 63. Ka3 {[%clk 0:00:24.3]}
63... Qe3 {[%clk 0:00:22.9]} 64. a5 {[%clk 0:00:23.8]} 64... Qd2 {[%clk
0:00:20.4]} 65. Ka4 {[%clk 0:00:24.5]} 65... Ke3 {[%clk 0:00:20.1]} 66. Kb5
{[%clk 0:00:24.7]} 66... Qd3 {[%clk 0:00:20.4]} 67. Kb4 {[%clk 0:00:24.5]} 67...
Qd2+ {[%clk 0:00:21]} 68. Kb5 {[%clk 0:00:25.6]} 68... Qd7+ {[%clk 0:00:21.9]}
69. Ka6 {[%clk 0:00:21.3]} 69... Qd3 {[%clk 0:00:20]} 70. Kxa7 {[%clk
0:00:19.7]} 70... Qxb3 {[%clk 0:00:20.5]} 71. Rc5 {[%clk 0:00:18.8]} 71... Kxf4
{[%clk 0:00:20.7]} 72. a6 {[%clk 0:00:19]} 72... Kg4 {[%clk 0:00:22]} 73. Rc6
{[%clk 0:00:19.6]} 73... f4 {[%clk 0:00:22.3]} 74. Rg6+ {[%clk 0:00:20.4]} 74...
Kf5 {[%clk 0:00:21.2]} 75. Rb6 {[%clk 0:00:22.3]} 75... Qe3 {[%clk 0:00:21.8]}
76. Kb7 {[%clk 0:00:22.9]} 76... Qe7+ {[%clk 0:00:19.5]} 77. Kb8 {[%clk
0:00:21.5]} 77... Qd8+ {[%clk 0:00:20.2]} 78. Kb7 {[%clk 0:00:22.7]} 78... Qd7+
{[%clk 0:00:20.9]} 79. Kb8 {[%clk 0:00:23.4]} 79... Qe8+ {[%clk 0:00:20.9]} 80.
Kb7 {[%clk 0:00:23.9]} 80... Qe4+ {[%clk 0:00:21.8]} 81. Kb8 {[%clk 0:00:24.7]}
81... Qe5+ {[%clk 0:00:15.6]} 82. Kb7 {[%clk 0:00:25.3]} 82... Qd5+ {[%clk
0:00:16.8]} 83. Kb8 {[%clk 0:00:26.2]} 83... Qc5 {[%clk 0:00:17.6]} 84. Kb7
{[%clk 0:00:24.6]} 84... Qe7+ {[%clk 0:00:18.8]} 85. Kb8 {[%clk 0:00:25.9]}
85... f3 {[%clk 0:00:20.4]} 86. a7 {[%clk 0:00:25.6]} 86... Qe5+ {[%clk
0:00:20.1]} 87. Kb7 {[%clk 0:00:26.3]} 87... Qe4+ {[%clk 0:00:21.2]} 88. Kb8
{[%clk 0:00:27.3]} 88... f2 {[%clk 0:00:21]} 89. a8=Q {[%clk 0:00:14.7]} 89...
Qxa8+ {[%clk 0:00:21]} 90. Kxa8 {[%clk 0:00:16.6]} 90... f1=Q {[%clk 0:00:22]}
91. Kb7 {[%clk 0:00:17.3]} 91... Ke5 {[%clk 0:00:20.7]} 92. Kc6 {[%clk
0:00:17.8]} 92... Qc4+ {[%clk 0:00:20.9]} 93. Kd7 {[%clk 0:00:18]} 93... Qc5
{[%clk 0:00:19.1]} 94. Rc6 {[%clk 0:00:18.1]} 94... Qa7+ {[%clk 0:00:18]} 95.
Rc7 {[%clk 0:00:17.6]} 95... Qa4+ {[%clk 0:00:18.7]} 96. Ke7 {[%clk 0:00:17.9]}
96... Qb4+ {[%clk 0:00:19.7]} 97. Kd7 {[%clk 0:00:18.3]} 97... Qd6+ {[%clk
0:00:19.7]} 98. Kc8 {[%clk 0:00:18.3]} 98... Kd5 {[%clk 0:00:20.2]} 99. Rd7
{[%clk 0:00:18.5]} 99... Qxd7+ {[%clk 0:00:20]} 100. Kxd7 {[%clk 0:00:20.4]}
1/2-1/2

[Event "*** Titled Tuesday 3|2 Blitz (Early)"]
[Site "Chess.com"]
[Date "2016.11.01"]
[Round "2"]
[White "SCIM"]
[Black "Frolyanov_D"]
[Result "0-1"]
[WhiteElo "2294"]
[BlackElo "2431"]
[TimeControl "180+2"]
[EndTime "11:16:58 PDT"]
[Termination "Frolyanov_D won by resignation"]

1. e4 {[%clk 0:03:01.9]} 1... e5 {[%clk 0:03:00.3]} 2. Nf3 {[%clk 0:03:02.1]}
2... Nf6 {[%clk 0:03:01.3]} 3. Nxe5 {[%clk 0:02:57.4]} 3... d6 {[%clk
0:03:02.2]} 4. Nf3 {[%clk 0:02:58.1]} 4... Nxe4 {[%clk 0:03:03]} 5. Nc3 {[%clk
0:02:59.7]} 5... Nxc3 {[%clk 0:03:04]} 6. dxc3 {[%clk 0:03:01.3]} 6... Be7
{[%clk 0:03:05.6]} 7. Bd3 {[%clk 0:02:59.9]} 7... O-O {[%clk 0:03:06.1]} 8. Be3
{[%clk 0:02:59.8]} 8... Nd7 {[%clk 0:03:05.7]} 9. Qd2 {[%clk 0:02:58.3]} 9... c6
{[%clk 0:03:05.8]} 10. O-O-O {[%clk 0:02:58.5]} 10... Qa5 {[%clk 0:03:06]} 11.
Kb1 {[%clk 0:02:58.3]} 11... Ne5 {[%clk 0:03:05.3]} 12. Nxe5 {[%clk 0:02:55.1]}
12... dxe5 {[%clk 0:03:03.4]} 13. c4 {[%clk 0:02:48.5]} 13... Qxd2 {[%clk
0:03:03]} 14. Bxd2 {[%clk 0:02:46.8]} 14... Rd8 {[%clk 0:02:32.3]} 15. Rhe1
{[%clk 0:02:44.7]} 15... Bd6 {[%clk 0:02:26.7]} 16. c5 {[%clk 0:02:28.4]} 16...
Bc7 {[%clk 0:02:20.8]} 17. Bc3 {[%clk 0:01:50.3]} 17... f6 {[%clk 0:02:20.1]}
18. f4 {[%clk 0:01:50.5]} 18... Bg4 {[%clk 0:02:15]} 19. Bc4+ {[%clk 0:01:47.7]}
19... Kf8 {[%clk 0:02:08.1]} 20. fxe5 {[%clk 0:01:47.3]} 20... Rxd1+ {[%clk
0:02:06.4]} 0-1

[Event "*** Titled Tuesday 3|2 Blitz (Early)"]
[Site "Chess.com"]
[Date "2016.11.01"]
[Round "2"]
[White "FrankieJay"]
[Black "bilelou"]
[Result "0-1"]
[WhiteElo "2193"]
[BlackElo "2361"]
[TimeControl "180+2"]
[EndTime "11:17:03 PDT"]
[Termination "bilelou won on time"]

1. e4 {[%clk 0:03:01.8]} 1... c5 {[%clk 0:03:00.7]} 2. Nf3 {[%clk 0:02:59.8]}
2... d6 {[%clk 0:03:02.2]} 3. d4 {[%clk 0:03:01.4]} 3... cxd4 {[%clk 0:03:03.6]}
4. Nxd4 {[%clk 0:03:03.3]} 4... Nf6 {[%clk 0:03:05.1]} 5. Nc3 {[%clk 0:03:03.9]}
5... a6 {[%clk 0:03:06.4]} 6. Bg5 {[%clk 0:03:05]} 6... Nbd7 {[%clk 0:03:07.1]}
7. Bc4 {[%clk 0:02:57.2]} 7... Qb6 {[%clk 0:03:07.3]} 8. O-O {[%clk 0:02:41.1]}
8... Qxb2 {[%clk 0:03:07]} 9. Nd5 {[%clk 0:02:36.1]} 9... Nxd5 {[%clk
0:03:07.6]} 10. Bxd5 {[%clk 0:02:38]} 10... Qc3 {[%clk 0:03:09]} 11. Rb1 {[%clk
0:02:35.9]} 11... Qc7 {[%clk 0:03:10.4]} 12. Kh1 {[%clk 0:01:55.5]} 12... e6
{[%clk 0:03:05.8]} 0-1

[Event "*** Titled Tuesday 3|2 Blitz (Early)"]
[Site "Chess.com"]
[Date "2016.11.01"]
[Round "2"]
[White "Haridaskesavan"]
[Black "josiwales"]
[Result "1-0"]
[WhiteElo "2120"]
[BlackElo "2169"]
[TimeControl "180+2"]
[EndTime "11:17:53 PDT"]
[Termination "Haridaskesavan won by resignation"]

1. e4 {[%clk 0:03:01.9]} 1... c5 {[%clk 0:02:58.6]} 2. c3 {[%clk 0:03:02.4]}
2... d5 {[%clk 0:02:59.3]} 3. exd5 {[%clk 0:03:03]} 3... Qxd5 {[%clk 0:03:01.2]}
4. d4 {[%clk 0:03:04.2]} 4... Nf6 {[%clk 0:03:02.5]} 5. Nf3 {[%clk 0:03:05.4]}
5... Bg4 {[%clk 0:03:03.5]} 6. Be2 {[%clk 0:03:06.5]} 6... e6 {[%clk 0:03:03.9]}
7. O-O {[%clk 0:03:04.7]} 7... Nc6 {[%clk 0:03:04.7]} 8. Be3 {[%clk 0:03:04]}
8... cxd4 {[%clk 0:03:05.2]} 9. cxd4 {[%clk 0:03:04.7]} 9... Bb4 {[%clk
0:03:06.7]} 10. h3 {[%clk 0:03:04.4]} 10... Bh5 {[%clk 0:03:07.2]} 11. Qb3
{[%clk 0:03:03.1]} 11... Qxb3 {[%clk 0:03:03.5]} 12. axb3 {[%clk 0:03:03.7]}
12... O-O {[%clk 0:03:04.5]} 13. Nc3 {[%clk 0:03:03.3]} 13... Bg6 {[%clk
0:02:51.7]} 14. Ne5 {[%clk 0:03:00.7]} 14... Nxe5 {[%clk 0:02:49.8]} 15. dxe5
{[%clk 0:03:01.4]} 15... Nd7 {[%clk 0:02:47.2]} 16. f4 {[%clk 0:03:00.2]} 16...
Bc5 {[%clk 0:02:43.6]} 17. Bxc5 {[%clk 0:02:50.3]} 17... Nxc5 {[%clk 0:02:45.5]}
18. Bf3 {[%clk 0:02:50.9]} 18... Nxb3 {[%clk 0:02:41.1]} 19. Bxb7 {[%clk
0:02:43.7]} 19... Nxa1 {[%clk 0:02:18.5]} 20. Bxa8 {[%clk 0:02:44.4]} 20... Nc2
{[%clk 0:02:20]} 21. Be4 {[%clk 0:02:39.8]} 21... Rb8 {[%clk 0:02:16.9]} 22.
Bxg6 {[%clk 0:02:09.1]} 22... hxg6 {[%clk 0:02:17.3]} 23. Rb1 {[%clk 0:01:58.6]}
23... a5 {[%clk 0:02:04.6]} 24. Kf2 {[%clk 0:01:51.4]} 24... Na3 {[%clk
0:01:59.7]} 25. bxa3 {[%clk 0:01:49.1]} 25... Rc8 {[%clk 0:02:00.9]} 26. Ne2
{[%clk 0:01:30.7]} 26... Rc2 {[%clk 0:01:58.1]} 27. Rb5 {[%clk 0:01:29.8]} 27...
a4 {[%clk 0:01:58.8]} 28. Rb4 {[%clk 0:01:28.6]} 1-0

[Event "*** Titled Tuesday 3|2 Blitz (Early)"]
[Site "Chess.com"]
[Date "2016.11.01"]
[Round "2"]
[White "MateusViageiro"]
[Black "jk13"]
[Result "0-1"]
[WhiteElo "2301"]
[BlackElo "2467"]
[TimeControl "180+2"]
[EndTime "11:18:41 PDT"]
[Termination "jk13 won by resignation"]

1. e4 {[%clk 0:03:01.9]} 1... e5 {[%clk 0:03:00.2]} 2. Nf3 {[%clk 0:03:02.2]}
2... Nc6 {[%clk 0:03:01.7]} 3. Bb5 {[%clk 0:03:02.8]} 3... Nf6 {[%clk
0:03:03.1]} 4. Bxc6 {[%clk 0:03:01.9]} 4... dxc6 {[%clk 0:03:03.1]} 5. d3 {[%clk
0:03:03.8]} 5... Bd6 {[%clk 0:03:03.7]} 6. Nbd2 {[%clk 0:03:04.6]} 6... Be6
{[%clk 0:03:04]} 7. Qe2 {[%clk 0:03:04.8]} 7... c5 {[%clk 0:03:04.9]} 8. Nc4
{[%clk 0:03:04.9]} 8... Nd7 {[%clk 0:03:01.6]} 9. Ne3 {[%clk 0:03:02.2]} 9...
O-O {[%clk 0:02:59.9]} 10. Bd2 {[%clk 0:03:03.3]} 10... Nb8 {[%clk 0:03:00.1]}
11. g4 {[%clk 0:03:03]} 11... Nc6 {[%clk 0:03:01.1]} 12. h4 {[%clk 0:03:02.7]}
12... Nd4 {[%clk 0:03:01.6]} 13. Nxd4 {[%clk 0:03:03.3]} 13... cxd4 {[%clk
0:03:03.5]} 14. Nf5 {[%clk 0:03:04.4]} 14... Qd7 {[%clk 0:02:53.3]} 15. h5
{[%clk 0:03:03.6]} 15... Rfe8 {[%clk 0:02:51.1]} 16. Qf3 {[%clk 0:02:56.3]}
16... Bf8 {[%clk 0:02:48.8]} 17. g5 {[%clk 0:02:53.9]} 17... Bxf5 {[%clk
0:02:43.3]} 18. exf5 {[%clk 0:02:52.7]} 18... e4 {[%clk 0:02:45.2]} 19. dxe4
{[%clk 0:02:50.8]} 19... Rxe4+ {[%clk 0:02:40.6]} 20. Qxe4 {[%clk 0:02:44]}
20... Re8 {[%clk 0:02:42.5]} 21. Qxe8 {[%clk 0:02:43.4]} 21... Qxe8+ {[%clk
0:02:42.9]} 22. Kd1 {[%clk 0:02:35.6]} 22... Qe4 {[%clk 0:02:44.8]} 23. Re1
{[%clk 0:02:31.9]} 23... Qxf5 {[%clk 0:02:44]} 24. Re2 {[%clk 0:02:22.3]} 24...
Qg4 {[%clk 0:02:41.1]} 25. h6 {[%clk 0:02:21.8]} 25... g6 {[%clk 0:02:31.7]} 26.
Be1 {[%clk 0:01:56.3]} 26... Qxg5 {[%clk 0:02:29.7]} 27. Bd2 {[%clk 0:01:51.1]}
27... Qh5 {[%clk 0:02:26.3]} 28. Bf4 {[%clk 0:01:44.6]} 28... c5 {[%clk
0:02:22.9]} 29. Kd2 {[%clk 0:01:44]} 29... Bxh6 {[%clk 0:02:20]} 30. Bxh6 {[%clk
0:01:42.9]} 30... Qxh6+ {[%clk 0:02:21.9]} 31. Kd3 {[%clk 0:01:43.1]} 31... Qh5
{[%clk 0:02:18.3]} 32. Rae1 {[%clk 0:01:42.4]} 32... Qf3+ {[%clk 0:02:14.7]} 33.
Kc4 {[%clk 0:01:42.4]} 33... Qc6 {[%clk 0:02:15.1]} 34. b3 {[%clk 0:01:40]}
34... b5+ {[%clk 0:02:14.8]} 35. Kd3 {[%clk 0:01:40.8]} 35... Qf3+ {[%clk
0:02:12.6]} 36. Kd2 {[%clk 0:01:41.2]} 36... h5 {[%clk 0:02:12.6]} 37. Re7
{[%clk 0:01:35.7]} 37... h4 {[%clk 0:02:10.1]} 38. Rxa7 {[%clk 0:01:34.1]} 38...
h3 {[%clk 0:02:10.7]} 39. Ree7 {[%clk 0:01:32]} 39... h2 {[%clk 0:02:09.4]} 40.
Re8+ {[%clk 0:01:33]} 40... Kg7 {[%clk 0:02:09.7]} 0-1

[Event "*** Titled Tuesday 3|2 Blitz (Early)"]
[Site "Chess.com"]
[Date "2016.11.01"]
[Round "2"]
[White "Sanan_Sjugirov"]
[Black "ftorodent"]
[Result "1-0"]
[WhiteElo "2695"]
[BlackElo "2512"]
[TimeControl "180+2"]
[EndTime "11:18:48 PDT"]
[Termination "Sanan_Sjugirov won by resignation"]

1. d4 {[%clk 0:03:01.9]} 1... d5 {[%clk 0:03:00.4]} 2. c4 {[%clk 0:03:02.8]}
2... e6 {[%clk 0:03:01.7]} 3. Nc3 {[%clk 0:03:02.2]} 3... Be7 {[%clk 0:03:02.9]}
4. Nf3 {[%clk 0:03:01.6]} 4... Nf6 {[%clk 0:03:03.1]} 5. Bf4 {[%clk 0:03:01.7]}
5... O-O {[%clk 0:03:04.3]} 6. e3 {[%clk 0:03:02.2]} 6... Nbd7 {[%clk
0:03:04.8]} 7. c5 {[%clk 0:03:02]} 7... c6 {[%clk 0:03:03.7]} 8. Bd3 {[%clk
0:02:58.9]} 8... b6 {[%clk 0:03:04.6]} 9. b4 {[%clk 0:02:59.2]} 9... a5 {[%clk
0:03:04.6]} 10. a3 {[%clk 0:03:00.1]} 10... Bb7 {[%clk 0:03:03.6]} 11. h3 {[%clk
0:02:53.3]} 11... Qc8 {[%clk 0:03:04.4]} 12. O-O {[%clk 0:02:53.9]} 12... Ba6
{[%clk 0:03:05.4]} 13. Bxa6 {[%clk 0:02:39.2]} 13... Rxa6 {[%clk 0:03:06.3]} 14.
Qc2 {[%clk 0:02:32.1]} 14... Qb7 {[%clk 0:03:00.7]} 15. Rab1 {[%clk 0:02:28.7]}
15... axb4 {[%clk 0:03:00.4]} 16. axb4 {[%clk 0:02:30.6]} 16... Rfa8 {[%clk
0:02:36.2]} 17. Nd2 {[%clk 0:02:25.3]} 17... Bd8 {[%clk 0:02:28.5]} 18. Nb3
{[%clk 0:01:59]} 18... Bc7 {[%clk 0:02:25]} 19. Rb2 {[%clk 0:01:52.7]} 19... h6
{[%clk 0:01:37.1]} 20. Rfb1 {[%clk 0:01:51]} 20... Qc8 {[%clk 0:01:28.9]} 21. b5
{[%clk 0:01:18.1]} 21... cxb5 {[%clk 0:01:18]} 22. c6 {[%clk 0:01:19.3]} 22...
Nb8 {[%clk 0:01:18.7]} 23. Bxc7 {[%clk 0:01:19.9]} 23... Qxc7 {[%clk 0:01:19.4]}
24. Nxb5 {[%clk 0:01:21.2]} 24... Qe7 {[%clk 0:01:08.6]} 25. c7 {[%clk
0:01:19.2]} 1-0

[Event "*** Titled Tuesday 3|2 Blitz (Early)"]
[Site "Chess.com"]
[Date "2016.11.01"]
[Round "2"]
[White "Chopper1905"]
[Black "IIIlllII1llIl"]
[Result "0-1"]
[WhiteElo "2561"]
[BlackElo "2523"]
[TimeControl "180+2"]
[EndTime "11:19:31 PDT"]
[Termination "IIIlllII1llIl won by resignation"]

1. e4 {[%clk 0:03:02]} 1... e5 {[%clk 0:03:00.7]} 2. Nf3 {[%clk 0:03:02.8]} 2...
Nc6 {[%clk 0:03:01.8]} 3. Bb5 {[%clk 0:03:03.6]} 3... Nf6 {[%clk 0:03:02.8]} 4.
d3 {[%clk 0:03:01.4]} 4... d6 {[%clk 0:03:03.2]} 5. c4 {[%clk 0:02:57]} 5... Be7
{[%clk 0:03:02.2]} 6. O-O {[%clk 0:02:56.9]} 6... O-O {[%clk 0:03:02.4]} 7. Nc3
{[%clk 0:02:57.6]} 7... Bg4 {[%clk 0:02:56.2]} 8. h3 {[%clk 0:02:56.5]} 8...
Bxf3 {[%clk 0:02:56.7]} 9. Qxf3 {[%clk 0:02:56.2]} 9... Nd4 {[%clk 0:02:57.6]}
10. Qd1 {[%clk 0:02:57.3]} 10... Nxb5 {[%clk 0:02:54.8]} 11. cxb5 {[%clk
0:02:54.8]} 11... a6 {[%clk 0:02:55.6]} 12. d4 {[%clk 0:02:49.6]} 12... axb5
{[%clk 0:02:47.5]} 13. Nxb5 {[%clk 0:02:50.2]} 13... Nxe4 {[%clk 0:02:45.8]} 14.
Re1 {[%clk 0:02:44.6]} 14... c6 {[%clk 0:02:41.6]} 15. Rxe4 {[%clk 0:02:34.8]}
15... cxb5 {[%clk 0:02:42.5]} 16. d5 {[%clk 0:02:35.4]} 16... Qd7 {[%clk
0:02:21.7]} 17. a3 {[%clk 0:02:33.7]} 17... f5 {[%clk 0:02:18.3]} 18. Rb4 {[%clk
0:02:33.2]} 18... Ra4 {[%clk 0:02:17.8]} 19. Bd2 {[%clk 0:02:29.8]} 19... Rc8
{[%clk 0:01:58.9]} 20. b3 {[%clk 0:02:25.9]} 20... Rxb4 {[%clk 0:01:56.4]} 21.
Bxb4 {[%clk 0:02:27.8]} 21... Bg5 {[%clk 0:01:51.7]} 22. Qe2 {[%clk 0:02:24.7]}
22... e4 {[%clk 0:01:45.1]} 23. Rd1 {[%clk 0:02:22.3]} 23... Bf4 {[%clk
0:01:43]} 24. g3 {[%clk 0:02:18.5]} 24... Be5 {[%clk 0:01:43.5]} 25. Kg2 {[%clk
0:02:16.2]} 25... Qe8 {[%clk 0:01:34.3]} 26. h4 {[%clk 0:02:06.3]} 26... h5
{[%clk 0:01:20.3]} 27. Re1 {[%clk 0:02:00.4]} 27... Qg6 {[%clk 0:01:12.6]} 28.
Rd1 {[%clk 0:01:09.6]} 28... f4 {[%clk 0:01:10.8]} 29. Qxb5 {[%clk 0:01:03.6]}
29... fxg3 {[%clk 0:01:04.1]} 30. Qd7 {[%clk 0:01:04.2]} 30... gxf2+ {[%clk
0:00:59.9]} 31. Kh1 {[%clk 0:01:04.5]} 31... Rf8 {[%clk 0:00:57.3]} 0-1

[Event "*** Titled Tuesday 3|2 Blitz (Early)"]
[Site "Chess.com"]
[Date "2016.11.01"]
[Round "2"]
[White "PaulfromSPb"]
[Black "Wilsonpalencia"]
[Result "1-0"]
[WhiteElo "2418"]
[BlackElo "2202"]
[TimeControl "180+2"]
[EndTime "11:19:39 PDT"]
[Termination "PaulfromSPb won on time"]

1. e4 {[%clk 0:03:02]} 1... c5 {[%clk 0:02:59.6]} 2. Ne2 {[%clk 0:03:02.6]} 2...
g6 {[%clk 0:02:59.7]} 3. g3 {[%clk 0:03:03.2]} 3... Bg7 {[%clk 0:03:00.5]} 4.
Bg2 {[%clk 0:03:04.5]} 4... Nc6 {[%clk 0:03:01.6]} 5. c3 {[%clk 0:03:05.6]} 5...
e5 {[%clk 0:02:59.3]} 6. O-O {[%clk 0:03:03.9]} 6... Nge7 {[%clk 0:02:58.4]} 7.
Na3 {[%clk 0:02:59.8]} 7... O-O {[%clk 0:02:58.5]} 8. d3 {[%clk 0:02:54.2]} 8...
d6 {[%clk 0:02:58.7]} 9. h3 {[%clk 0:02:55.1]} 9... Be6 {[%clk 0:02:58.5]} 10.
Nc4 {[%clk 0:02:51.3]} 10... b6 {[%clk 0:02:51.6]} 11. a4 {[%clk 0:02:51.9]}
11... Qd7 {[%clk 0:02:51.8]} 12. Kh2 {[%clk 0:02:51.9]} 12... d5 {[%clk
0:02:46.5]} 13. Ne3 {[%clk 0:02:40.2]} 13... Rad8 {[%clk 0:02:40.5]} 14. Qc2
{[%clk 0:02:38.2]} 14... f5 {[%clk 0:02:37.7]} 15. exd5 {[%clk 0:02:34.5]} 15...
Nxd5 {[%clk 0:02:35.6]} 16. Nxd5 {[%clk 0:02:28.4]} 16... Bxd5 {[%clk
0:02:35.5]} 17. f3 {[%clk 0:02:27]} 17... f4 {[%clk 0:02:23.6]} 18. g4 {[%clk
0:02:21.7]} 18... Be6 {[%clk 0:02:14.8]} 19. Rd1 {[%clk 0:02:21.3]} 19... Qf7
{[%clk 0:02:04]} 20. Ra3 {[%clk 0:02:13.1]} 20... Na5 {[%clk 0:02:04.2]} 21. c4
{[%clk 0:02:04]} 21... Nc6 {[%clk 0:02:03.9]} 22. Bd2 {[%clk 0:01:56.8]} 22...
Qd7 {[%clk 0:01:56.6]} 23. Bf1 {[%clk 0:01:44.2]} 1-0

[Event "*** Titled Tuesday 3|2 Blitz (Early)"]
[Site "Chess.com"]
[Date "2016.11.01"]
[Round "2"]
[White "TheCount"]
[Black "AdrianaNikolova"]
[Result "1-0"]
[WhiteElo "2431"]
[BlackElo "2251"]
[TimeControl "180+2"]
[EndTime "11:20:22 PDT"]
[Termination "TheCount won by resignation"]

1. d4 {[%clk 0:02:59]} 1... d6 {[%clk 0:02:59.4]} 2. c4 {[%clk 0:02:59.6]} 2...
c6 {[%clk 0:02:59.4]} 3. Nf3 {[%clk 0:02:55.2]} 3... Qc7 {[%clk 0:02:59.6]} 4.
Nc3 {[%clk 0:02:55.6]} 4... e5 {[%clk 0:02:59.6]} 5. Bg5 {[%clk 0:02:52.2]} 5...
Be7 {[%clk 0:02:58.1]} 6. Qd2 {[%clk 0:02:47.3]} 6... Nf6 {[%clk 0:02:57.8]} 7.
e4 {[%clk 0:02:38.4]} 7... O-O {[%clk 0:02:56.5]} 8. Be2 {[%clk 0:02:37.6]} 8...
Bg4 {[%clk 0:02:56]} 9. h3 {[%clk 0:02:34.7]} 9... Bxf3 {[%clk 0:02:55.7]} 10.
Bxf3 {[%clk 0:02:36.6]} 10... Nbd7 {[%clk 0:02:54.9]} 11. O-O {[%clk 0:02:33.3]}
11... Rad8 {[%clk 0:02:48.1]} 12. Rfe1 {[%clk 0:02:27.4]} 12... Rfe8 {[%clk
0:02:47.8]} 13. Rad1 {[%clk 0:02:26.9]} 13... Nf8 {[%clk 0:02:47.7]} 14. Be3
{[%clk 0:02:23.2]} 14... Ng6 {[%clk 0:02:40.8]} 15. g3 {[%clk 0:02:22.8]} 15...
a6 {[%clk 0:02:31.3]} 16. Bg2 {[%clk 0:02:23.8]} 16... b5 {[%clk 0:02:29]} 17.
b3 {[%clk 0:02:19.5]} 17... Bf8 {[%clk 0:02:22.9]} 18. d5 {[%clk 0:02:20]} 18...
b4 {[%clk 0:02:19.2]} 19. Na4 {[%clk 0:02:17.8]} 19... c5 {[%clk 0:02:19]} 20.
Nb2 {[%clk 0:02:13.7]} 20... a5 {[%clk 0:02:17]} 21. Nd3 {[%clk 0:02:14.4]}
21... Nd7 {[%clk 0:02:15.5]} 22. f4 {[%clk 0:02:14.9]} 22... Nb6 {[%clk
0:01:57.6]} 23. Qf2 {[%clk 0:02:09.9]} 23... a4 {[%clk 0:01:51.6]} 24. h4 {[%clk
0:02:11.2]} 24... axb3 {[%clk 0:01:51.7]} 25. axb3 {[%clk 0:02:12.1]} 25... Ra8
{[%clk 0:01:51.9]} 26. h5 {[%clk 0:02:13.5]} 26... exf4 {[%clk 0:01:38]} 27.
gxf4 {[%clk 0:02:08.5]} 27... Ne7 {[%clk 0:01:37.9]} 28. h6 {[%clk 0:01:53.8]}
28... g6 {[%clk 0:01:27.1]} 29. f5 {[%clk 0:01:55.2]} 29... Ra3 {[%clk
0:01:17.7]} 30. Rb1 {[%clk 0:01:50]} 30... Rea8 {[%clk 0:01:16.1]} 31. fxg6
{[%clk 0:01:38.9]} 31... Nxg6 {[%clk 0:01:07.7]} 32. Nf4 {[%clk 0:01:34.1]}
32... Ra2 {[%clk 0:01:02.7]} 33. Qg3 {[%clk 0:01:32.7]} 33... Qe7 {[%clk
0:00:53]} 34. Nxg6 {[%clk 0:01:26.8]} 34... fxg6 {[%clk 0:00:52.1]} 35. Bh3
{[%clk 0:01:25.3]} 35... Qxe4 {[%clk 0:00:43.6]} 36. Be6+ {[%clk 0:01:23.6]}
36... Kh8 {[%clk 0:00:42.5]} 37. Bxc5 {[%clk 0:01:23.1]} 37... Qc2 {[%clk
0:00:23.2]} 38. Bd4+ {[%clk 0:01:22.6]} 1-0